bitfinex/quotes_ETHUSD_20250611
["timestamp","ask_amount","ask_price","bid_price","bid_amount"]
[1749618532593,0.7292,2786.0,2785.9,10.97]
[1749618532917,0.7292,2786.0,2785.9,14.655]
[1749618533897,0.7292,2786.0,2785.9,4.655]
[1749618535698,0.7292,2786.0,2785.9,4.653]
[1749618535897,0.7292,2786.0,2785.9,14.653]
[1749618536222,0.7292,2786.0,2785.9,10.97]
[1749618536418,0.55,2785.9,2785.8,9.289]
[1749618536619,1.74948326,2785.9,2785.8,10.259]
[1749618539145,11.26231582,2785.9,2785.8,10.259]
[1749618539289,7.97970988,2785.9,2785.8,10.259]
[1749618545987,7.97970988,2785.9,2785.1,0.9056]
[1749618545988,0.55,2785.7,2785.1,0.04]
[1749618546188,1.1906,2785.8,2785.2,0.97]
[1749618546189,0.55,2785.3,2785.2,0.97]
[1749618546355,6.78022662,2785.3,2785.2,0.97]
[1749618546689,6.95942662,2785.3,2785.2,0.97]
[1749618546898,7.77442928,2785.3,2785.2,0.97]
[1749618547188,7.77442928,2785.3,2785.1,0.04]
[1749618547189,8.91862928,2785.3,2785.1,0.04]
[1749618547639,0.7292,2785.3,2785.1,0.04]
[1749618547844,6.95942662,2785.3,2785.1,0.04]
[1749618549043,0.1792,2785.3,2785.2,13.682]
[1749618550945,0.1792,2785.3,2785.2,14.4983]
[1749618551461,0.1792,2785.3,2785.2,22.161644]
[1749618551665,0.1792,2785.3,2785.2,14.4983]
[1749618553057,0.1792,2785.3,2785.2,0.8163]
[1749618554170,0.1792,2785.3,2785.2,4.4953]
[1749618555299,0.1792,2785.3,2785.2,14.7493]
[1749618555707,4.7,2786.2,2785.2,14.7493]
[1749618555708,1.1232,2787.2,2785.3,0.8163]
[1749618555908,1.1232,2787.2,2786.4,10.0]
[1749618556061,1.1232,2787.2,2786.5,8.49461008]
[1749618556269,7.35342662,2787.2,2786.5,8.49461008]
[1749618556495,6.23022662,2787.0,2786.5,7.37816161]
[1749618556822,0.1792,2786.6,2786.5,6.14765782]
[1749618557405,0.1792,2786.6,2786.5,1.47165782]
[1749618557614,0.1792,2786.6,2786.5,6.14665782]
[1749618558372,0.1792,2786.6,2786.5,16.14665782]
[1749618559304,0.7292,2786.6,2786.5,16.50870607]
[1749618559507,10.23544311,2786.6,2786.5,5.04204825]
[1749618559717,11.37938742,2786.6,2786.5,5.04204825]
[1749618559914,0.55,2786.5,2786.0,0.8163]
[1749618560115,0.55,2786.5,2786.1,0.962]
[1749618560618,0.1792,2786.2,2786.1,0.962]
[1749618560924,0.1792,2786.2,2786.1,0.35877895]
[1749618561082,0.1792,2786.2,2785.8,10.0]
[1749618561427,0.1792,2786.0,2785.9,3.714]
[1749618561778,0.1792,2786.0,2785.6,1.11873413]
[1749618562007,0.1792,2786.0,2785.6,0.99927413]
[1749618562318,0.1792,2786.0,2785.6,1.34965583]
[1749618562501,0.1792,2786.0,2785.8,10.0]
[1749618564017,0.1792,2786.0,2785.4,10.0]
[1749618564329,0.1792,2785.8,2785.6,10.0]
[1749618564616,1.7555,2786.5,2785.6,10.36267517]
[1749618564820,1.7555,2786.5,2785.8,10.0]
[1749618565130,1.7555,2786.5,2785.9,13.968]
[1749618565331,11.26174311,2786.5,2785.9,9.29]
[1749618565482,0.7292,2786.0,2785.9,9.29]
[1749618566003,0.7292,2786.0,2785.9,13.967]
[1749618568739,0.7292,2786.0,2785.9,10.252]
[1749618568914,1.8835,2786.0,2785.9,10.252]
[1749618569121,1.8835,2786.0,2785.9,13.965]
[1749618569426,3.02247431,2786.0,2785.9,13.965]
[1749618570341,3.02247431,2786.0,2785.9,13.964]
[1749618570640,3.02247431,2786.0,2785.9,9.29]
[1749618570854,3.02247431,2786.0,2785.9,10.252]
[1749618571223,1.8835,2786.0,2785.9,10.252]
[1749618573209,0.7292,2786.0,2785.9,10.252]
[1749618574024,0.1792,2786.0,2785.9,10.252]
[1749618574916,0.1792,2786.0,2785.9,9.29]
[1749618575342,0.1792,2786.0,2785.9,13.963]
[1749618583464,0.1792,2786.0,2785.9,9.29]
[1749618583663,0.1792,2786.0,2785.9,13.97]
[1749618584160,0.1792,2786.0,2785.9,13.972]
[1749618584466,7.65310301,2786.0,2785.9,13.972]
[1749618584762,6.95736637,2786.0,2785.9,10.267]
[1749618584985,6.95736637,2786.0,2785.9,13.973]
[1749618585262,6.95736637,2786.0,2785.9,13.972]
[1749618586248,0.55,2785.9,2785.1,10.04]
[1749618586455,0.55,2785.3,2785.2,10.267]
[1749618586674,0.55,2785.3,2785.2,13.975]
[1749618586865,0.1792,2785.3,2785.2,13.975]
[1749618587254,0.1792,2785.3,2785.2,14.33405284]
[1749618587872,0.1792,2785.3,2785.2,9.29]
[1749618588081,0.87493664,2785.3,2785.2,13.975]
[1749618588775,8.23120301,2785.3,2785.2,9.29]
[1749618588957,8.23120301,2785.3,2785.2,10.267]
[1749618589665,2.55303664,2785.3,2785.2,10.267]
[1749618589865,0.7292,2785.3,2785.2,10.267]
[1749618590255,0.1792,2785.3,2785.2,10.61783882]
[1749618590659,0.1792,2785.3,2785.2,10.66713882]
[1749618590993,0.1792,2785.3,2785.2,37.69745974]
[1749618591188,1.202,2786.3,2785.7,10.0]
[1749618591351,1.94501664,2786.3,2785.8,3.719]
[1749618591890,0.1792,2785.9,2785.8,3.719]
[1749618592249,0.1792,2785.9,2785.4,8.318023]
[1749618592456,0.1792,2785.6,2785.3,26.839694]
[1749618592764,0.1792,2785.6,2785.3,16.839694]
[1749618593463,0.1792,2785.6,2785.5,21.255735]
[1749618593668,0.1792,2785.6,2785.5,11.83522055]
[1749618594492,0.1792,2785.6,2785.5,9.548697]
[1749618594691,0.1792,2785.6,2785.5,10.0]
[1749618594997,0.1792,2785.6,2785.4,3.718]
[1749618595357,0.1792,2785.6,2785.5,0.18771971]
[1749618595558,0.1792,2785.6,2785.5,0.977]
[1749618596691,0.1792,2785.6,2785.5,4.694]
[1749618598091,0.1792,2785.6,2785.5,14.694]
[1749618598477,0.1792,2785.6,2785.5,23.985]
[1749618601973,1.2008,2786.5,2785.5,49.105983]
[1749618602199,0.1792,2785.9,2785.8,10.0]
[1749618602501,0.1792,2785.9,2785.8,3.71]
[1749618602993,0.1792,2785.9,2785.8,4.686]
[1749618608180,0.1792,2785.9,2785.8,4.7386]
[1749618608701,0.1792,2785.9,2785.8,44.7386]
[1749618609316,1.1091,2787.8,2786.0,0.0526]
[1749618609520,0.1792,2786.5,2786.3,6.22816637]
[1749618609679,0.1792,2786.5,2786.4,13.709]
[1749618609884,0.04,2787.9,2786.6,10.0526]
[1749618609885,0.1792,2786.8,2786.6,10.0526]
[1749618610079,0.1792,2786.8,2786.7,30.077288]
[1749618610311,0.1792,2787.2,2786.9,0.0526]
[1749618610618,0.1792,2787.2,2787.1,10.0]
[1749618611328,0.1792,2787.2,2787.1,32.06909437]
[1749618611487,1.1627,2787.7,2787.1,16.22816637]
[1749618611692,1.1627,2787.7,2787.3,10.0]
[1749618611929,1.1627,2787.7,2787.4,12.997]
[1749618612144,1.1627,2787.7,2787.5,0.976]
[1749618612289,1.7127,2787.7,2787.6,3.708]
[1749618612498,1.8919,2787.7,2787.6,3.708]
[1749618613109,0.7292,2787.7,2787.6,3.708]
[1749618613937,0.1792,2787.7,2787.6,4.0627555]
[1749618614430,0.1792,2787.7,2787.6,14.0627555]
[1749618614730,0.1792,2787.7,2787.6,15.0367555]
[1749618615733,1.9374,2787.7,2787.6,15.0367555]
[1749618615932,2.48426917,2787.7,2787.6,15.0367555]
[1749618616229,1.9374,2787.7,2787.6,15.0367555]
[1749618616992,0.1792,2787.7,2787.6,15.0367555]
[1749618617201,0.1792,2787.7,2787.6,15.61624105]
[1749618618104,0.1792,2787.7,2787.6,15.0367555]
[1749618620062,0.1792,2787.7,2787.6,10.3547555]
[1749618620244,0.1792,2787.7,2787.6,15.0347555]
[1749618621252,0.1792,2787.7,2787.6,15.61424105]
[1749618621449,0.1792,2787.7,2787.6,16.16056891]
[1749618621733,0.04,2787.9,2787.6,15.0347555]
[1749618621906,0.1792,2787.8,2787.7,10.0]
[1749618622234,0.1792,2787.8,2787.7,26.22816637]
[1749618622440,0.04,2787.9,2787.8,10.0526]
[1749618622733,0.04,2787.9,2787.8,43.7556]
[1749618623232,0.04,2787.9,2787.8,32.65063637]
[1749618624364,0.398,2789.9,2787.8,32.65063637]
[1749618624365,1.1673,2789.0,2787.9,10.0526]
[1749618624684,1.1673,2789.0,2788.3,39.537731]
[1749618624974,0.1792,2788.6,2788.5,20.630967]
[1749618625179,0.1792,2788.6,2788.5,24.331967]
[1749618625347,0.1792,2788.6,2788.5,21.723986]
[1749618625545,0.1792,2788.6,2788.5,20.832098]
[1749618625848,4.74,2789.9,2788.5,20.832098]
[1749618625849,1.1723,2789.4,2788.8,33.067615]
[1749618626049,0.1792,2789.1,2788.8,34.31552837]
[1749618626245,1.1723,2789.7,2788.8,34.31552837]
[1749618626447,0.1792,2789.4,2789.1,31.029093]
[1749618626759,0.1792,2789.4,2789.3,13.861746]
[1749618626967,0.04,2789.9,2789.3,10.0]
[1749618627130,0.1792,2789.5,2789.4,13.703]
[1749618627330,0.04,2789.9,2789.5,10.0]
[1749618627590,0.1792,2789.8,2789.7,10.0]
[1749618627840,8.128,2791.7,2789.7,10.0]
[1749618627841,1.185,2790.6,2789.9,10.0]
[1749618628078,0.1792,2790.3,2790.2,8.304281]
[1749618628375,0.1792,2790.4,2790.3,3.741163]
[1749618628584,0.1792,2790.4,2790.2,3.706]
[1749618628938,0.1792,2790.4,2790.3,3.489081]
[1749618629132,0.1792,2790.4,2790.2,13.706]
[1749618629133,0.1792,2790.4,2790.2,10.0]
[1749618629380,0.1792,2790.4,2789.6,0.1792]
[1749618629381,1.3239,2790.4,2789.6,0.1792]
[1749618629549,1.1447,2790.4,2789.8,10.0]
[1749618629748,0.1792,2789.9,2789.7,0.975]
[1749618629934,0.1792,2789.9,2789.8,3.704]
[1749618630343,0.1792,2789.9,2789.8,4.678]
[1749618632448,0.1792,2789.9,2789.8,14.678]
[1749618632647,0.1792,2789.9,2789.8,21.282761]
[1749618632952,0.1792,2789.9,2789.8,18.743264]
[1749618633167,0.1792,2789.9,2789.8,16.917395]
[1749618634283,0.1792,2789.9,2789.8,14.678]
[1749618634587,0.1792,2789.9,2789.8,18.444855]
[1749618635063,0.1792,2789.9,2789.8,14.678]
[1749618636490,0.1792,2789.9,2789.8,0.975]
[1749618637670,0.1792,2789.9,2789.8,4.676]
[1749618638782,0.1792,2789.9,2789.8,4.674]
[1749618639167,0.1792,2789.9,2789.5,0.53990493]
[1749618639368,1.8185,2790.2,2789.6,4.676]
[1749618639568,1.1303136,2790.1,2789.6,4.676]
[1749618639768,0.1792,2789.7,2789.6,4.676]
[1749618641588,0.1792,2789.7,2789.2,9.62]
[1749618641784,0.1792,2789.3,2789.2,9.6445696]
[1749618642101,0.1792,2789.3,2789.2,14.3215696]
[1749618643291,0.1792,2789.3,2789.2,14.3205696]
[1749618644794,0.1792,2789.3,2789.2,9.6445696]
[1749618644996,0.1792,2789.3,2789.2,14.3195696]
[1749618646366,0.1792,2789.3,2789.2,24.3195696]
[1749618647194,0.1792,2789.3,2789.2,20.6195696]
[1749618647399,0.1792,2789.3,2789.2,14.3165696]
[1749618648104,0.1792,2789.3,2789.2,9.6445696]
[1749618648300,0.1792,2789.3,2789.2,14.3165696]
[1749618652274,0.1792,2789.3,2789.2,10.6195696]
[1749618652275,0.7292,2789.3,2789.2,10.6195696]
[1749618652477,1.976,2789.3,2789.2,10.259]
[1749618652784,1.7142,2789.2,2789.0,9.279]
[1749618653003,1.7142,2789.2,2789.1,0.975]
[1749618653373,1.9672,2789.2,2787.8,0.1568]
[1749618653574,1.238,2788.9,2788.2,4.672]
[1749618653798,0.1792,2788.3,2788.2,4.672]
[1749618654010,0.1792,2788.3,2788.2,15.25148555]
[1749618654396,0.1792,2788.3,2788.2,14.672]
[1749618654596,0.1792,2788.3,2788.2,0.975]
[1749618654797,1.361,2788.3,2788.2,4.672]
[1749618655142,0.55,2788.2,2788.1,0.04]
[1749618655412,0.55,2788.2,2788.1,13.991]
[1749618656389,0.55,2788.2,2788.1,9.319]
[1749618656575,0.55,2788.2,2788.1,13.992]
[1749618657076,1.361,2788.3,2788.1,13.993]
[1749618657077,0.1792,2788.3,2788.1,13.993]
[1749618657397,0.1792,2788.3,2788.2,10.0]
[1749618657713,0.1792,2788.3,2788.2,10.3650547]
[1749618658811,1.2046,2788.9,2788.2,10.3650547]
[1749618659014,0.1792,2788.4,2788.3,13.699]
[1749618666238,0.1792,2788.4,2788.3,18.902126]
[1749618666910,9.68135599,2789.1,2788.4,10.0]
[1749618666911,1.209,2789.1,2788.4,10.0]
[1749618667127,1.209,2789.5,2788.6,10.0]
[1749618667325,0.1792,2788.9,2788.8,10.0]
[1749618667540,0.1792,2788.9,2788.8,10.976]
[1749618667750,0.1792,2788.9,2788.3,0.1568]
[1749618667751,0.55,2788.8,2788.4,10.0]
[1749618667967,0.55,2788.8,2788.3,10.0]
[1749618667968,0.55,2788.6,2788.5,4.668]
[1749618668265,2.7510636,2788.6,2788.1,9.319]
[1749618668430,2.7510636,2788.6,2788.5,0.976]
[1749618668624,2.7510636,2788.6,2788.5,4.669]
[1749618668946,2.9302636,2788.6,2788.5,4.669]
[1749618671447,1.9268,2788.6,2788.5,4.669]
[1749618671815,0.7292,2788.6,2788.5,4.669]
[1749618672830,0.7292,2788.6,2788.5,0.976]
[1749618673027,0.7292,2788.6,2788.5,4.665]
[1749618673748,0.7292,2788.6,2788.5,4.6691605]
[1749618673929,1.8746936,2788.6,2788.5,0.9801605]
[1749618674133,3.0629936,2788.6,2788.5,0.9801605]
[1749618674347,1.9175,2788.6,2788.5,0.9801605]
[1749618674512,1.9175,2788.6,2788.5,0.9741605]
[1749618681647,1.9175,2788.6,2788.5,0.97]
[1749618681838,11.40213599,2788.6,2788.5,0.97]
[1749618682048,12.54234959,2788.6,2788.5,0.97]
[1749618683760,3.0577136,2788.6,2788.5,0.97]
[1749618683924,1.9175,2788.6,2788.5,0.97]
[1749618685262,1.9175,2788.6,2788.5,10.253]
[1749618685932,0.7292,2788.6,2788.5,10.253]
[1749618686356,0.1792,2788.6,2788.5,20.253]
[1749618686543,0.1792,2788.6,2788.5,24.72088555]
[1749618686872,1.2113,2789.5,2788.6,10.0]
[1749618687171,1.2113,2789.8,2789.0,0.2044]
[1749618687365,1.2113,2789.8,2789.2,10.0]
[1749618687539,1.2113,2789.8,2789.3,0.97]
[1749618688172,0.1792,2789.4,2789.3,0.97]
[1749618690563,0.1792,2789.4,2789.3,2.38305909]
[1749618690755,0.1792,2789.4,2789.3,1.1744]
[1749618695667,0.1792,2789.4,2789.3,6.783632]
[1749618695868,0.1792,2789.4,2789.3,16.783632]
[1749618696049,0.04,2789.9,2789.3,17.36311755]
[1749618696245,0.04,2789.9,2789.5,10.0]
[1749618696246,0.1792,2789.7,2789.5,10.0]
[1749618696757,0.1792,2789.7,2789.6,16.760521]
[1749618697272,0.1792,2789.7,2789.6,12.2984]
[1749618697473,1.2151,2790.7,2789.8,0.2044]
[1749618697689,1.2151,2790.7,2790.0,10.0]
[1749618697844,1.2151,2790.7,2789.9,1.02044]
[1749618698171,1.2151,2790.7,2789.6,0.1792]
[1749618698172,0.7292,2790.1,2790.0,14.65]
[1749618698352,0.55,2790.1,2790.0,14.65]
[1749618698538,0.7292,2790.1,2790.0,14.65]
[1749618699167,0.7292,2790.1,2790.0,4.649]
[1749618699866,0.7292,2790.1,2790.0,4.99840827]
[1749618700066,1.8720936,2790.1,2789.6,0.2044]
[1749618700395,0.1792,2789.9,2789.8,10.0]
[1749618701676,0.1792,2789.9,2789.8,4.642]
[1749618701879,0.1792,2789.9,2789.8,10.0]
[1749618702076,1.7268,2789.8,2789.3,0.1082]
[1749618702275,1.7268,2789.8,2789.2,0.35792781]
[1749618702276,9.48463599,2789.4,2789.2,0.35792781]
[1749618702496,11.21143599,2789.4,2789.3,0.963]
[1749618703008,11.39063599,2789.4,2789.3,0.963]
[1749618703221,0.55,2789.3,2789.0,3.683]
[1749618703381,0.1792,2789.2,2789.1,0.963]
[1749618703567,0.7292,2789.2,2789.1,0.963]
[1749618706702,1.7783,2789.1,2788.8,0.36433536]
[1749618707005,1.7783,2789.1,2788.9,4.644]
[1749618707333,0.7292,2789.0,2788.9,4.644]
[1749618710045,0.1792,2789.0,2788.9,4.644]
[1749618710346,0.1792,2789.0,2788.9,14.644]
[1749618712042,0.1792,2789.0,2788.9,4.644]
[1749618712243,0.1792,2789.0,2788.9,4.642]
[1749618712641,0.1792,2789.0,2788.6,1.31328449]
[1749618712812,0.1792,2789.0,2788.9,0.963]
[1749618714046,0.1792,2789.0,2788.9,4.642]
[1749618715528,0.1792,2789.0,2788.9,4.7502]
[1749618715711,1.234,2789.6,2788.9,14.7502]
[1749618716044,0.1792,2789.1,2789.0,10.0]
[1749618716216,0.1792,2789.1,2788.9,4.7502]
[1749618716416,0.1792,2789.1,2789.0,10.0]
[1749618717763,0.1792,2789.1,2789.0,3.678]
[1749618718135,0.1792,2789.1,2789.0,13.678]
[1749618718338,0.55,2789.0,2788.4,0.1082]
[1749618718656,0.55,2788.8,2788.6,4.644]
[1749618719021,0.7292,2788.7,2788.6,0.963]
[1749618719222,1.9737,2788.7,2788.6,0.963]
[1749618720939,1.9737,2788.7,2788.6,4.642]
[1749618721241,3.1392896,2788.7,2788.6,0.963]
[1749618723136,3.1392896,2788.7,2788.5,9.283]
[1749618723360,9.48463599,2788.6,2788.5,9.283]
[1749618723658,9.48463599,2788.6,2788.5,10.246]
[1749618730568,1.7601,2788.5,2787.5,0.85577971]
[1749618730766,9.66383599,2788.3,2788.2,10.242]
[1749618732985,0.7292,2788.3,2788.2,13.916]
[1749618733554,0.1792,2788.3,2788.2,13.916]
[1749618734690,0.1792,2788.3,2788.2,24.1216]
[1749618735351,4.7,2789.1,2788.2,24.1216]
[1749618735352,4.7,2789.1,2788.3,10.0]
[1749618735557,0.1792,2788.5,2788.4,13.8826]
[1749618736623,0.1792,2788.5,2788.4,13.677]
[1749618736792,0.1792,2788.5,2788.4,3.677]
[1749618736979,0.7292,2788.5,2788.4,4.636]
[1749618737170,0.55,2788.4,2788.2,9.282]
[1749618737365,0.55,2788.5,2788.3,4.636]
[1749618737765,0.1792,2788.4,2788.3,4.636]
[1749618738391,0.1792,2788.4,2788.3,0.96]
[1749618742218,0.1792,2788.4,2788.2,9.282]
[1749618742429,2.2205836,2788.4,2788.3,0.96]
[1749618742745,0.7292,2788.4,2788.3,0.96]
[1749618743700,10.21383599,2788.4,2788.3,0.96]
[1749618744040,0.55,2788.3,2788.2,9.282]
[1749618744195,0.55,2788.3,2788.2,10.242]
[1749618744533,1.8033,2788.3,2788.2,9.282]
[1749618744740,2.8246836,2788.3,2788.2,10.242]
[1749618748640,2.8356836,2788.3,2788.2,0.96]
[1749618748838,1.8143,2788.2,2788.1,0.04]
[1749618749039,3.24345196,2788.2,2788.1,0.04]
[1749618749589,3.16815196,2788.2,2788.1,0.04]
[1749618751526,0.7292,2788.2,2788.1,0.04]
[1749618751828,0.1792,2788.2,2788.1,0.2456]
[1749618752331,10.72203599,2789.2,2788.2,0.2056]
[1749618752536,0.1792,2788.3,2788.2,0.2056]
[1749618752692,0.1792,2788.3,2788.2,3.8826]
[1749618752891,0.1792,2788.3,2788.2,3.88573157]
[1749618753095,0.1792,2788.3,2788.2,0.20873157]
[1749618755154,0.1792,2788.3,2788.2,20.45273157]
[1749618756855,0.7292,2788.3,2788.2,10.24713157]
[1749618757163,0.7292,2788.3,2788.2,9.28713157]
[1749618757368,10.21383599,2788.3,2788.2,9.28713157]
[1749618757515,12.44791959,2788.3,2788.2,10.24713157]
[1749618758031,11.23521959,2788.3,2788.2,10.24713157]
[1749618758354,10.21383599,2788.3,2788.2,10.24713157]
[1749618759855,10.21383599,2788.3,2788.2,0.96]
[1749618763166,0.7292,2788.3,2788.2,0.96]
[1749618764944,0.7292,2788.3,2787.6,10.1792]
[1749618764945,0.55,2788.2,2787.6,10.1792]
[1749618765265,0.55,2788.2,2786.5,0.24027648]
[1749618765266,0.55,2788.0,2787.7,10.241]
[1749618765442,10.03463599,2787.8,2787.7,10.241]
[1749618765641,10.21383599,2787.8,2787.7,10.241]
[1749618767141,0.7292,2787.8,2787.7,10.241]
[1749618767542,0.1792,2787.8,2787.7,20.241]
[1749618767761,0.1792,2787.8,2787.7,20.2849]
[1749618782108,0.7292,2787.8,2787.7,13.912]
[1749618782405,1.54699045,2787.8,2787.7,13.912]
[1749618783071,1.54699045,2787.8,2787.7,10.241]
[1749618783270,1.54699045,2787.8,2787.7,13.912]
[1749618784405,1.54699045,2787.8,2787.7,23.912]
[1749618784406,0.1792,2787.8,2787.7,23.912]
[1749618788794,0.55,2788.2,2787.7,23.912]
[1749618788997,0.1792,2787.9,2787.7,23.912]
[1749618793413,0.1792,2787.9,2787.8,10.0]
[1749618793606,0.1792,2787.9,2787.8,25.221651]
[1749618793807,0.1792,2787.9,2787.8,24.73792957]
[1749618794004,0.1792,2787.9,2787.8,18.89500857]
[1749618794196,0.1792,2787.9,2787.8,10.00427857]
[1749618797898,7.58846493,2787.9,2787.8,0.00427857]
[1749618798225,8.20390448,2787.9,2787.8,0.00427857]
[1749618798524,0.7292,2787.9,2787.8,3.67527857]
[1749618798726,0.1792,2787.9,2787.8,13.67527857]
[1749618799590,0.1792,2788.0,2787.9,10.0]
[1749618803920,0.1792,2788.0,2787.8,3.671]
[1749618804085,0.55,2788.7,2787.9,23.83261241]
[1749618804285,0.1792,2788.3,2788.1,10.0]
[1749618804517,0.1792,2788.3,2788.2,13.671]
[1749618804885,0.1792,2788.3,2788.2,13.67527795]
[1749618805830,6.94860448,2788.3,2788.2,0.00427795]
[1749618806136,8.90316493,2788.3,2788.2,4.63227795]
[1749618808326,8.90316493,2788.3,2788.2,4.63127795]
[1749618808636,8.90316493,2788.3,2788.2,0.00427795]
[1749618808946,1.42406045,2788.3,2788.2,0.96127795]
[1749618809289,1.42406045,2788.3,2788.2,4.63127795]
[1749618810534,7.64346493,2788.3,2788.2,4.63127795]
[1749618810895,7.64346493,2788.3,2788.2,0.957]
[1749618812140,7.64346493,2788.3,2788.2,4.628]
[1749618814608,7.64346493,2788.3,2788.2,13.911]
[1749618817148,0.1792,2788.3,2788.2,13.911]
[1749618818771,1.2163,2789.2,2788.3,18.587241]
[1749618818933,0.1792,2788.5,2788.4,3.67]
[1749618820756,0.1792,2788.5,2788.4,28.82544148]
[1749618820965,0.1792,2788.9,2788.5,26.092767]
[1749618821119,5.8819,2789.6,2788.7,30.0]
[1749618821320,0.1792,2789.0,2788.9,21.759793]
[1749618821620,0.1792,2789.1,2789.0,28.288924]
[1749618821821,0.1792,2789.1,2789.0,28.830639]
[1749618822053,0.1792,2789.1,2789.0,26.431667]
[1749618822524,0.1792,2789.1,2789.0,25.482432]
[1749618823436,0.1792,2789.1,2789.0,25.84624805]
[1749618824665,4.7,2789.8,2789.0,25.84624805]
[1749618824961,0.1792,2789.2,2789.1,20.60604]
[1749618825132,4.7,2789.8,2789.2,30.0]
[1749618825485,0.1792,2789.7,2789.3,3.8492]
[1749618825758,0.1792,2789.7,2789.4,16.245546]
[1749618826066,0.1792,2789.7,2789.5,3.67]
[1749618826364,0.1792,2789.7,2789.6,3.67]
[1749618831269,0.1792,2789.7,2789.1,21.25515]
[1749618831442,6.21940448,2789.8,2789.6,0.957]
[1749618831644,6.21940448,2789.8,2789.7,3.669]
[1749618832166,6.39860448,2789.8,2789.7,3.669]
[1749618832365,0.1792,2789.8,2789.7,3.669]
[1749618835853,0.1792,2789.8,2789.7,12.948]
[1749618836263,0.1792,2789.8,2789.7,0.956]
[1749618837378,0.1792,2789.8,2789.7,4.624]
[1749618838013,0.1792,2789.8,2789.7,24.40955477]
[1749618838292,0.1792,2789.8,2789.7,17.619483]
[1749618839088,0.1792,2789.8,2789.7,17.333017]
[1749618839288,0.1792,2789.8,2789.7,16.975999]
[1749618841202,0.2192,2789.9,2789.8,30.0]
[1749618841400,0.2192,2789.9,2789.8,11.09236809]
[1749618841566,0.2192,2789.9,2789.8,10.141709]
[1749618841966,0.7692,2789.9,2789.8,8.849786]
[1749618842183,2.0074,2789.9,2789.8,0.956]
[1749618842368,2.83008045,2789.9,2789.8,0.956]
[1749618845081,2.83008045,2789.9,2789.8,10.233]
[1749618846611,8.22680448,2789.9,2789.8,10.233]
[1749618847280,0.55,2789.8,2789.1,10.093491]
[1749618847604,0.1792,2789.7,2789.2,0.956]
[1749618847780,0.1792,2789.4,2789.2,0.956]
[1749618848399,0.1792,2789.4,2789.3,3.668]
[1749618848995,0.1673,2789.4,2789.3,3.668]
[1749618853794,0.1792,2789.5,2789.4,9.365531]
[1749618853998,0.1792,2789.5,2789.4,7.769131]
[1749618854999,0.1792,2789.5,2789.4,2.336816]
[1749618855180,0.1792,2789.5,2789.4,26.845036]
[1749618855388,0.1792,2789.5,2789.4,26.379131]
[1749618855598,0.1792,2789.5,2789.4,21.799131]
[1749618856423,0.1792,2789.5,2789.4,16.468673]
[1749618859027,0.1792,2789.8,2789.5,12.627245]
[1749618859227,0.1792,2789.8,2789.7,16.855383]
[1749618859433,0.1792,2789.8,2789.7,2.522931]
[1749618859732,0.1792,2789.8,2789.7,2.284]
[1749618859893,0.1792,2789.8,2789.6,3.668]
[1749618860508,0.1792,2789.8,2789.7,2.285294]
[1749618860835,0.1792,2789.8,2789.7,2.718294]
[1749618862599,0.1792,2789.8,2789.6,3.668]
[1749618863035,0.1792,2789.8,2789.7,4.623]
[1749618863333,1.1601,2789.8,2789.7,4.623]
[1749618863533,1.3393,2789.8,2789.7,4.623]
[1749618867219,8.86857493,2789.8,2789.7,0.956]
[1749618867419,8.86857493,2789.8,2789.7,4.623]
[1749618867608,0.55,2789.7,2789.4,9.278]
[1749618867808,0.55,2789.7,2789.5,4.623]
[1749618868127,1.42293749,2789.7,2789.5,4.623]
[1749618868334,0.1792,2789.6,2789.5,4.623]
[1749618868713,0.7292,2789.6,2789.5,0.956]
[1749618868913,0.7292,2789.6,2789.5,4.623]
[1749618869729,6.94860448,2789.6,2789.5,0.956]
[1749618869929,8.93787493,2789.6,2789.5,0.956]
[1749618871763,2.71847045,2789.6,2789.5,0.956]
[1749618871962,1.9076,2789.6,2789.5,0.956]
[1749618872260,8.12700448,2789.6,2789.5,0.956]
[1749618872579,1.7602,2789.5,2789.4,9.278]
[1749618872865,1.7602,2789.5,2789.4,10.234]
[1749618873031,2.57608045,2789.5,2789.4,10.234]
[1749618876165,2.57608045,2789.5,2788.1,1.7590147]
[1749618876465,0.1792,2788.6,2788.5,6.21940448]
[1749618876670,0.04,2789.9,2788.5,6.21940448]
[1749618876671,0.1792,2788.9,2788.6,30.204671]
[1749618876964,0.1792,2789.2,2789.0,10.0]
[1749618877141,0.1792,2789.2,2789.1,3.487191]
[1749618877469,0.1792,2789.2,2789.1,4.623]
[1749618883572,0.1792,2789.2,2789.1,8.050306]
[1749618884469,0.1792,2789.2,2789.1,4.623]
[1749618884671,0.1792,2789.2,2789.1,0.956]
[1749618884861,0.1792,2789.2,2789.1,4.623]
[1749618885365,0.1792,2789.2,2789.1,13.902]
[1749618889178,0.1792,2789.2,2789.1,23.353153]
[1749618889392,0.1792,2789.2,2789.1,16.5704]
[1749618891511,0.1792,2789.2,2789.1,13.902]
[1749618892678,0.1792,2789.2,2789.1,22.830008]
[1749618893284,0.1792,2789.2,2789.1,18.240008]